fUSD/lending_fUSD_20250109
["ID","MTS","AMOUNT","RATE_DAILY","PERIOD"]
[348341900,1736455842344,-500.0,9.854e-05,2]
[348341902,1736455842354,-543.2,9.854e-05,2]
[348341904,1736455842363,-500.0,9.854e-05,2]
[348341906,1736455842373,-550.46,9.854e-05,2]
[348341908,1736455842382,-500.0,9.854e-05,2]
[348341911,1736455842391,-500.0,9.854e-05,2]
[348341913,1736455842402,-843.86,9.854e-05,2]
[348341917,1736455842411,-500.0,9.854e-05,2]
[348341919,1736455842422,-1188.27,9.854e-05,2]
[348341921,1736455842431,-500.0,9.854e-05,2]
[348341923,1736455842441,-1007.67,9.854e-05,2]
[348341925,1736455842450,-500.0,9.854e-05,2]
[348341927,1736455842459,-2020.49,9.854e-05,2]
[348341929,1736455842469,-500.0,9.854e-05,2]
[348341931,1736455842478,-500.0,9.854e-05,2]
[348341933,1736455842488,-641.66,9.854e-05,2]
[348341935,1736455842498,-500.0,9.854e-05,2]
[348341937,1736455842507,-500.0,9.854e-05,2]
[348341941,1736455842516,-962.59,9.854e-05,2]
[348341946,1736455842525,-505.33721338,9.854e-05,2]
[348341950,1736455842535,-500.0,9.854e-05,2]
[348341954,1736455842544,-500.0,9.854e-05,2]
[348341958,1736455842553,-500.0,9.854e-05,2]
[348341962,1736455842562,-500.0,9.854e-05,2]
[348341966,1736455842573,-1040.12,9.854e-05,2]
[348341969,1736455842582,-537.95,9.854e-05,2]
[348341971,1736455842591,-500.0,9.854e-05,2]
[348341973,1736455842601,-765.62,9.854e-05,2]
[348341975,1736455842610,-500.0,9.854e-05,2]
[348341977,1736455842620,-1191.43,9.854e-05,2]
[348341979,1736455842631,-500.0,9.854e-05,2]
[348341981,1736455842640,-500.0,9.854e-05,2]
[348341983,1736455842650,-578.67869922,9.854e-05,2]
[348341986,1736455842659,-992.26,9.854e-05,2]
[348341989,1736455842668,-500.0,9.854e-05,2]
[348341992,1736455842678,-211.73284021,9.854e-05,2]
[348341994,1736455842687,-702.0,9.854e-05,2]
[348341997,1736455842696,-818.88,9.854e-05,2]
[348342000,1736455842705,-1005.25,9.854e-05,2]
[348342003,1736455842715,-500.0,9.854e-05,2]
[348342006,1736455842724,-500.0,9.854e-05,2]
[348342009,1736455842734,-500.0,9.854e-05,2]
[348342012,1736455842745,-924.35,9.854e-05,2]
[348342015,1736455842756,-1002.49,9.854e-05,2]
[348342018,1736455842766,-500.0,9.854e-05,2]
[348342021,1736455842775,-500.0,9.854e-05,2]
[348342024,1736455842784,-1685.84,9.854e-05,2]
[348342027,1736455842793,-1076.461504,9.854e-05,2]
[348342029,1736455842803,-568.61,9.854e-05,2]
[348342031,1736455842812,-684.61,9.854e-05,2]
[348342033,1736455842825,-159.924286,9.854e-05,2]
[348342035,1736455842835,-993.7,9.854e-05,2]
[348342037,1736455842844,-849.1,9.854e-05,2]
[348342039,1736455842853,-754.31,9.854e-05,2]
[348342041,1736455842863,-1091.345309,9.854e-05,2]
[348342043,1736455842872,-3552.61,9.854e-05,2]
[348342045,1736455842882,-523.04,9.854e-05,2]
[348342047,1736455842891,-500.0,9.854e-05,2]
[348342049,1736455842900,-500.0,9.854e-05,2]
[348342051,1736455842910,-1925.24,9.854e-05,2]
[348342053,1736455842919,-760.18,9.854e-05,2]
[348342055,1736455842928,-513.92334594,9.854e-05,2]
[348342057,1736455842937,-557.88,9.854e-05,2]
[348342059,1736455842947,-500.0,9.854e-05,2]
[348342061,1736455842956,-1935.2,9.854e-05,2]
[348342063,1736455842966,-563.58,9.854e-05,2]
[348342065,1736455842975,-500.0,9.854e-05,2]
[348342067,1736455842985,-500.0,9.854e-05,2]
[348342069,1736455842994,-500.0,9.854e-05,2]
[348342071,1736455843003,-500.0,9.854e-05,2]
[348342073,1736455843012,-500.0,9.854e-05,2]
[348342075,1736455843022,-1151.41,9.854e-05,2]
[348342077,1736455843031,-500.0,9.854e-05,2]
[348342080,1736455843041,-500.0,9.854e-05,2]
[348342082,1736455843050,-646.84,9.854e-05,2]
[348342084,1736455843060,-500.0,9.854e-05,2]
[348342086,1736455843072,-500.0,9.854e-05,2]
[348342087,1736455843082,-500.0,9.854e-05,2]
[348342090,1736455843092,-988.94,9.854e-05,2]
[348342091,1736455843102,-4238.76,9.854e-05,2]
[348342094,1736455843112,-879.25,9.854e-05,2]
[348342096,1736455843123,-3512.33,9.854e-05,2]
[348342098,1736455843133,-950.5,9.854e-05,2]
[348342100,1736455843143,-3022.08,9.854e-05,2]
[348342102,1736455843154,-613.87,9.854e-05,2]
[348342104,1736455843164,-4605.48,9.854e-05,2]
[348342106,1736455843175,-1761.38,9.854e-05,2]
[348342108,1736455843186,-500.0,9.854e-05,2]
[348342110,1736455843196,-508.74,9.854e-05,2]
[348342111,1736455843206,-888.98,9.854e-05,2]
[348342113,1736455843216,-803.82,9.854e-05,2]
[348342116,1736455843228,-2850.38,9.854e-05,2]
[348342118,1736455843240,-500.0,9.854e-05,2]
[348342119,1736455843251,-818.13,9.854e-05,2]
[348342121,1736455843262,-500.0,9.854e-05,2]
[348342123,1736455843272,-619.49,9.854e-05,2]
[348342125,1736455843284,-973.15,9.854e-05,2]
[348342128,1736455843294,-500.0,9.854e-05,2]
[348342130,1736455843305,-550.71,9.854e-05,2]
[348342132,1736455843315,-500.0,9.854e-05,2]
[348342133,1736455843334,-920.34,9.854e-05,2]
[348342135,1736455843348,-500.0,9.854e-05,2]
[348342138,1736455843358,-1002.71,9.854e-05,2]
[348342140,1736455843369,-906.69,9.854e-05,2]
[348342142,1736455843379,-500.0,9.854e-05,2]
[348342144,1736455843390,-500.0,9.854e-05,2]
[348342145,1736455843399,-500.0,9.854e-05,2]
[348342148,1736455843409,-500.0,9.854e-05,2]
[348342150,1736455843419,-887.79,9.854e-05,2]
[348342152,1736455843430,-599.61,9.854e-05,2]
[348342154,1736455843440,-592.64,9.854e-05,2]
[348342156,1736455843450,-500.0,9.854e-05,2]
[348342158,1736455843460,-500.0,9.854e-05,2]
[348342160,1736455843469,-1000.0,9.855e-05,2]
[348342162,1736455843479,-500.0,9.855e-05,2]
[348342164,1736455843489,-500.0,9.855e-05,2]
[348342166,1736455843499,-500.0,9.855e-05,2]
[348342168,1736455843509,-500.0,9.855e-05,2]
[348342170,1736455843519,-500.0,9.855e-05,2]
[348342172,1736455843527,-500.0,9.855e-05,2]
[348342174,1736455843537,-500.0,9.855e-05,2]
[348342176,1736455843547,-500.0,9.855e-05,2]
[348342178,1736455843556,-500.0,9.855e-05,2]
[348342180,1736455843566,-500.0,9.855e-05,2]
[348342182,1736455843580,-500.0,9.855e-05,2]
[348342184,1736455843589,-500.0,9.855e-05,2]
[348342186,1736455843598,-500.0,9.855e-05,2]
[348342188,1736455843608,-500.0,9.855e-05,2]
[348342190,1736455843618,-500.0,9.855e-05,2]
[348342192,1736455843627,-500.0,9.855e-05,2]
[348342194,1736455843637,-500.0,9.855e-05,2]
[348342196,1736455843646,-500.0,9.855e-05,2]
[348342198,1736455843655,-500.0,9.855e-05,2]
[348342200,1736455843664,-500.0,9.855e-05,2]
[348342202,1736455843673,-501.2705915,9.855e-05,2]
[348342204,1736455843683,-500.0,9.855e-05,2]
[348342206,1736455843692,-500.71675978,9.855e-05,2]
[348342208,1736455843701,-500.0,9.855e-05,2]
[348342210,1736455843709,-500.0,9.855e-05,2]
[348342212,1736455843719,-500.0,9.855e-05,2]
[348342214,1736455843728,-500.0,9.855e-05,2]
[348342216,1736455843737,-500.0,9.855e-05,2]
[348342218,1736455843747,-500.0,9.855e-05,2]
[348342220,1736455843759,-1000.0,9.855e-05,2]
[348342222,1736455843769,-500.0,9.855e-05,2]
[348342224,1736455843778,-500.0,9.855e-05,2]
[348342226,1736455843787,-527.83994577,9.855e-05,2]
[348342228,1736455843798,-500.0,9.855e-05,2]
[348342230,1736455843807,-885.68,9.855e-05,2]
[348342232,1736455843816,-529.64,9.855e-05,2]
[348342234,1736455843829,-749.57,9.855e-05,2]
[348342236,1736455843839,-500.0,9.855e-05,2]
[348342238,1736455843848,-816.27,9.855e-05,2]
[348342240,1736455843857,-717.08,9.855e-05,2]
[348342242,1736455843867,-721.22,9.855e-05,2]
[348342244,1736455843876,-940.0,9.855e-05,2]
[348342246,1736455843885,-666.5,9.855e-05,2]
[348342248,1736455843894,-500.0,9.855e-05,2]
[348342250,1736455843903,-550.04,9.855e-05,2]
[348342252,1736455843912,-531.01014074,9.855e-05,2]
[348342254,1736455843921,-500.0,9.855e-05,2]
[348342256,1736455843931,-500.0,9.855e-05,2]
[348342258,1736455843940,-1123.27,9.855e-05,2]
[348342260,1736455843949,-591.44,9.855e-05,2]
[348342262,1736455843959,-997.22,9.855e-05,2]
[348342264,1736455843968,-500.0,9.855e-05,2]
[348342266,1736455843977,-935.26,9.855e-05,2]
[348342268,1736455843987,-500.0,9.855e-05,2]
[348342270,1736455843996,-539.88,9.855e-05,2]
[348342272,1736455844006,-500.0,9.855e-05,2]
[348342274,1736455844015,-500.0,9.855e-05,2]
[348342276,1736455844024,-676.27,9.855e-05,2]
[348342278,1736455844033,-500.0,9.855e-05,2]
[348342280,1736455844043,-500.0,9.855e-05,2]
[348342282,1736455844052,-500.0,9.855e-05,2]
[348342284,1736455844062,-500.0,9.855e-05,2]
[348342286,1736455844073,-500.0,9.856e-05,2]
[348342288,1736455844083,-1140.78,9.857e-05,2]
[348342290,1736455844091,-921.66,9.857e-05,2]
[348342292,1736455844101,-1004.68,9.857e-05,2]
[348342294,1736455844110,-3059.68,9.857e-05,2]
[348342296,1736455844119,-500.0,9.857e-05,2]
[348342298,1736455844128,-857.52,9.857e-05,2]
[348342300,1736455844137,-1242.47,9.857e-05,2]
[348342302,1736455844146,-633.46,9.857e-05,2]
[348342304,1736455844156,-1732.22,9.857e-05,2]
[348342306,1736455844165,-500.0,9.857e-05,2]
[348342308,1736455844175,-1000.0,9.857e-05,2]
[348342310,1736455844184,-1117.49,9.857e-05,2]
[348342312,1736455844193,-500.0,9.857e-05,2]
[348342314,1736455844203,-2294.63,9.857e-05,2]
[348342316,1736455844213,-1536.37,9.857e-05,2]
[348342318,1736455844222,-500.0,9.898e-05,2]
[348342320,1736455844232,-500.0,9.898e-05,2]
[348342322,1736455844241,-1038.25,9.898e-05,2]
[348342324,1736455844251,-500.0,9.899e-05,2]
[348342326,1736455844260,-500.0,9.899e-05,2]
[348342328,1736455844269,-500.0,9.899e-05,2]
[348342330,1736455844278,-500.0,9.899e-05,2]
[348342332,1736455844288,-500.0,9.899e-05,2]
[348342334,1736455844297,-500.0,9.899e-05,2]
[348342336,1736455844307,-517.77,9.899e-05,2]
[348342338,1736455844316,-500.0,9.899e-05,2]
[348342340,1736455844327,-500.0,9.899e-05,2]
[348342350,1736455844403,-500.0,9.899e-05,2]
[348342352,1736455844412,-500.0,9.899e-05,2]
[348342354,1736455844421,-500.0,9.899e-05,2]
[348342356,1736455844431,-500.0,9.899e-05,2]
[348342357,1736455844440,-500.0,9.899e-05,2]
[348342359,1736455844449,-500.0,9.899e-05,2]
[348342361,1736455844459,-500.0,9.899e-05,2]
[348342363,1736455844469,-500.0,9.899e-05,2]
[348342365,1736455844479,-500.0,9.899e-05,2]
[348342368,1736455844489,-27986.6424,9.9e-05,2]
[348342369,1736455844498,-787.212,9.9e-05,2]
[348342371,1736455844507,-486.0,9.9e-05,3]
[348342373,1736455844516,-1000.0,9.9e-05,2]
[348342375,1736455844526,-1000.0,9.9e-05,2]
[348342377,1736455844535,-1000.0,9.9e-05,2]
[348342379,1736455844544,-150.0,9.9e-05,2]
[348342381,1736455844553,-1000.0,9.9e-05,2]
[348342383,1736455844564,-211.25,9.941e-05,2]
[348342385,1736455844575,-314.19112286,9.966e-05,2]
[348342387,1736455844584,-4904.678,9.966e-05,2]
[348342389,1736455844593,-240.39364659,9.973e-05,2]
[348342391,1736455844603,-4402.0,9.973e-05,2]
[348342393,1736455844612,-500.0,9.973e-05,2]
[348342395,1736455844623,-152.0689055,9.973e-05,2]
[348342398,1736455844632,-500.0,9.973e-05,2]
[348342400,1736455844643,-151.82612416,9.973e-05,2]
[348342401,1736455844652,-200.0,9.973e-05,2]
[348342403,1736455844661,-291.62089137,9.974e-05,2]
[348342405,1736455844671,-291.62089137,9.974e-05,2]
[348342408,1736455844681,-291.62089137,9.975e-05,2]
[348342409,1736455844690,-291.62089137,9.975e-05,2]
[348342411,1736455844699,-200.0,9.977e-05,2]
[348342412,1736455844708,-200.0,9.978e-05,2]
[348342413,1736455844717,-1270.22806548,9.978e-05,2]
[348342414,1736455844726,-291.62089137,9.978e-05,2]
[348342415,1736455844736,-1270.22806548,9.979e-05,2]
[348342416,1736455844745,-240.39364659,9.98e-05,2]
[348342417,1736455844757,-240.39364659,9.98e-05,2]
[348342418,1736455844766,-291.62089137,9.983e-05,2]
[348342420,1736455844776,-291.62089137,9.983e-05,2]
[348342422,1736455844785,-240.39364659,9.984e-05,2]
[348342424,1736455844794,-291.62089137,9.984e-05,2]
[348342426,1736455844803,-291.62089137,9.986e-05,2]
[348342428,1736455844812,-291.62089137,9.987e-05,2]
[348342430,1736455844823,-1270.22806548,9.988e-05,2]
[348342432,1736455844832,-1270.22806548,9.989e-05,2]
[348342434,1736455844842,-291.62089137,9.99e-05,2]
[348342436,1736455844851,-379.6840037,9.992e-05,2]
[348342438,1736455844860,-5248.1626525,9.992e-05,2]
[348342440,1736455844869,-1429.2463244,9.992e-05,2]
[348342442,1736455844878,-840.7480668,9.992e-05,2]
[348342444,1736455844887,-291.62089137,9.995e-05,2]
[348342446,1736455844896,-200.0,9.997e-05,2]
[348342448,1736455844905,-200.0,9.997e-05,2]
[348342450,1736455844915,-1270.22806548,9.998e-05,2]
[348342452,1736455844924,-240.39364659,9.998e-05,2]
[348342454,1736455844933,-240.39364659,9.999e-05,2]
[348342456,1736455844943,-500.0,9.999e-05,2]
[348342458,1736455844952,-935.33,9.999e-05,2]
[348342460,1736455844961,-1055.04,9.999e-05,2]
[348342462,1736455844971,-1517.05,9.999e-05,2]
[348342464,1736455844980,-1614.77,9.999e-05,2]
[348342466,1736455844990,-1659.59,9.999e-05,2]
[348342468,1736455844999,-1728.22,9.999e-05,2]
[348342470,1736455845008,-1629.36,9.999e-05,2]
[348342472,1736455845017,-1561.47,9.999e-05,2]
[348342474,1736455845026,-2155.84,9.999e-05,2]
[348342476,1736455845035,-156.995149,9.999e-05,2]
[348342478,1736455845045,-399.06854385,9.999e-05,3]
[348342480,1736455845054,-1422.82,9.999e-05,2]
[348342482,1736455845063,-1863.11,9.999e-05,2]
[348342484,1736455845075,-500.0,9.999e-05,2]
[348342486,1736455845083,-500.0,9.999e-05,2]
[348342488,1736455845092,-500.0,9.999e-05,2]
[348342490,1736455845101,-500.0,9.999e-05,2]
[348342492,1736455845110,-500.0,9.999e-05,2]
[348342494,1736455845119,-500.0,9.999e-05,2]
[348342496,1736455845129,-500.0,9.999e-05,2]
[348342498,1736455845139,-500.0,9.999e-05,2]
[348342500,1736455845148,-500.0,9.999e-05,2]
[348342502,1736455845157,-500.0,9.999e-05,2]
[348342504,1736455845166,-500.0,9.999e-05,2]
[348342506,1736455845175,-500.0,9.999e-05,2]
[348342507,1736455845184,-500.0,9.999e-05,2]
[348342510,1736455845194,-500.0,9.999e-05,2]
[348342511,1736455845203,-500.0,9.999e-05,2]
[348342513,1736455845212,-500.0,9.999e-05,2]
[348342516,1736455845222,-336.78193485,9.999e-05,2]
[348342518,1736455845231,-500.0,9.999e-05,2]
[348342519,1736455845240,-1051.89,9.999e-05,2]
[348342521,1736455845249,-500.0,9.999e-05,2]
[348342523,1736455845259,-1968.77,9.999e-05,2]
[348342525,1736455845268,-1534.16,9.999e-05,2]
[348342527,1736455845277,-856.91,9.999e-05,2]
[348342530,1736455845287,-1270.22806548,9.999e-05,2]
[348342533,1736455845296,-978.75,9.999e-05,2]
[348342535,1736455845305,-910.37,9.999e-05,2]
[348342538,1736455845315,-865.2,9.999e-05,2]
[348342541,1736455845327,-906.02,9.999e-05,2]
[348342543,1736455845336,-500.0,9.999e-05,2]
[348342545,1736455845345,-500.0,9.999e-05,2]
[348342548,1736455845355,-500.0,9.999e-05,2]
[348342551,1736455845366,-500.0,9.999e-05,2]
[348342554,1736455845375,-500.0,9.999e-05,2]
[348342556,1736455845386,-1338.54,9.999e-05,2]
[348342558,1736455845395,-1451.92,9.999e-05,2]
[348342560,1736455845404,-1566.33,9.999e-05,2]
[348342564,1736455845414,-775.62,9.999e-05,2]
[348342566,1736455845423,-1921.93,9.999e-05,2]
[348342568,1736455845432,-1860.84,9.999e-05,2]
[348342570,1736455845442,-1264.83,9.999e-05,2]
[348342572,1736455845451,-1127.95,9.999e-05,2]
[348342575,1736455845461,-1551.77,9.999e-05,2]
[348342577,1736455845470,-3079.58,9.999e-05,2]
[348342579,1736455845481,-1575.57,9.999e-05,2]
[348342582,1736455845490,-1949.08,9.999e-05,2]
[348342585,1736455845501,-2292.22,9.999e-05,2]
[348342587,1736455845510,-2726.68,9.999e-05,2]
[348342589,1736455845519,-1914.01,9.999e-05,2]
[348342591,1736455845529,-5410.47,9.999e-05,2]
[348342593,1736455845538,-177.6437438,9.999e-05,2]
[348342595,1736455845547,-1964.0,0.0001,2]
[348342597,1736455845556,-254.15761092,0.0001,2]
[348342599,1736455845566,-299647.07387383,0.0001,2]
[348342601,1736455845577,-151.0,0.0001,2]
[348342603,1736455845587,-151.0,0.0001,2]
[348342605,1736455845596,-6983643.2864502,0.0001,4]
[348342647,1736455845989,-252.16683952,0.0001,4]
[348342649,1736455846001,-2517.12117141,0.0001,4]
[348342652,1736455846017,-408.499957,0.0001,4]
[348342655,1736455846028,-4816.8,0.0001,4]
[348342658,1736455846040,-1378.62,0.0001,4]
[348342662,1736455846052,-8991.38465614,0.0001,4]
[348342665,1736455846064,-963.81285001,0.0001,4]
[348342710,1736455846462,-8092.33,9.999e-05,2]
[348342712,1736455846472,-84137.68247832,0.0001,4]
[348342714,1736455846485,-299409.93705102,0.0001,4]
[348342716,1736455846496,-5961.10031479,0.0001,4]
[348342718,1736455846508,-686.24633394,0.0001,4]
[348342721,1736455846519,-10252.27877477,0.0001,4]
[348342723,1736455846531,-7887.0668544,0.0001,4]
[348342725,1736455846542,-1606.229472,0.0001,4]
[348342727,1736455846554,-266.89322451,0.0001,4]
[348342734,1736455846605,-16550.01267482,0.0001,4]
[348342735,1736455846622,-2884.84977065,0.0001,4]
[348342738,1736455846688,-92212.83665538,0.0001,4]
[348342740,1736455846699,-7618.07795771,0.0001,4]
[348342742,1736455846711,-112752.16594622,0.0001,4]
[348342746,1736455846748,-7190.80562244,0.0001,4]
[348342749,1736455846761,-980.44946021,0.0001,4]
[348342766,1736455847208,-300753.73858573,0.0001,4]
[348342767,1736455847237,-22491.7547035,0.0001,4]
[348342768,1736455847249,-375.0,0.0001,4]
[348342769,1736455847261,-931.13278959,0.0001,4]
[348342770,1736455847272,-401.0,0.0001,4]
[348342771,1736455847290,-1116.44405222,0.0001,4]
[348342772,1736455847306,-6766.8835218,0.0001,4]
[348342786,1736455847530,-891.16267047,0.0001,4]
[348342788,1736455847543,-10810.32918365,0.0001,4]
[348342791,1736455847562,-1065.55894033,0.0001,4]
[348342793,1736455847573,-1098.0000002,0.0001,4]
[348342795,1736455847584,-524.61457944,0.0001,4]
[348342797,1736455847595,-778438.06650397,0.0001,4]
[348342802,1736455847980,-500.0,9.848e-05,2]
[348342803,1736455847990,-2394.829,0.0001,4]
[348342804,1736455848001,-27113.78270218,0.0001,4]
[348342805,1736455848013,-2213.15629143,0.0001,4]
[348342806,1736455848024,-22787.37970422,0.0001,4]
[348342807,1736455848062,-441.64,0.0001,4]
[348342808,1736455848074,-82763.7,0.0001,4]
[348342809,1736455848100,-7404.41532893,0.0001,4]
[348342810,1736455848111,-2153.718366,0.0001,4]
[348342811,1736455848123,-858.58526745,0.0001,4]
[348342813,1736456073075,726.43,8.219e-05,2]
[348342814,1736456103074,155.0,8.219e-05,30]
[348342815,1736456103320,158.0,8.219e-05,30]
[348342816,1736456103441,155.0,0.00012813,30]
[348342817,1736456103589,158.0,0.00010188,30]
[348342818,1736456103902,158.0,0.00012156,30]
[348342820,1736456403503,159.0,8.219e-05,30]
[348342821,1736456403703,159.0,0.00011664,30]
[348342824,1736456599233,-500.0,0.000146,31]
[348342827,1736456702447,159.0,8.219e-05,30]
[348342828,1736456704188,155.0,8.219e-05,30]
[348342829,1736456711675,150.0,8.223e-05,2]
[348342830,1736456752927,9850.0,8.508e-05,2]
[348342831,1736456752951,10000.0,8.508e-05,2]
[348342832,1736456752977,4050.0,8.508e-05,2]
[348342844,1736456868762,985.35,8.509e-05,2]
[348342848,1736457002719,159.0,8.219e-05,30]
[348342849,1736457003623,156.11287,8.219e-05,30]
[348342850,1736457021409,747.01,8.219e-05,2]
[348342877,1736457031766,-150.0,8.515e-05,2]
[348342878,1736457031779,-270.41,8.557e-05,2]
[348342879,1736457031789,-162.7,8.639e-05,2]
[348342880,1736457031800,-15.09478617,8.639e-05,2]
[348342881,1736457031814,-462.79226411,8.639e-05,2]
[348342882,1736457031845,-522.11294972,8.639e-05,2]
[348342883,1736457031855,-166.01,8.781e-05,2]
[348342884,1736457031864,-150.0,8.859e-05,2]
[348342885,1736457031874,-41883.64,8.883e-05,2]
[348342886,1736457031883,-1072.38,8.917e-05,2]
[348342887,1736457031893,-315.24,8.987e-05,2]
[348342888,1736457031902,-150.0,8.998e-05,2]
[348342889,1736457031912,-629.10260947,9.004e-05,2]
[348342890,1736457031921,-250.0,9.031e-05,2]
[348342891,1736457031931,-150.0,9.032e-05,2]
[348342892,1736457031941,-263.0,9.043e-05,2]
[348342893,1736457031953,-200.0,9.046e-05,2]
[348342894,1736457031962,-1100.0,9.09e-05,2]
[348342895,1736457031972,-500.0,9.09e-05,2]
[348342896,1736457031981,-150.0,9.121e-05,2]
[348342897,1736457031991,-150.0,9.255e-05,2]
[348342898,1736457032001,-10994.0,9.315e-05,2]
[348342899,1736457032012,-500.0,9.35e-05,2]
[348342900,1736457032023,-150.0,9.355e-05,2]
[348342901,1736457032034,-150.0,9.467e-05,2]
[348342902,1736457032044,-160.05,9.5e-05,2]
[348342903,1736457032054,-150.0,9.54e-05,2]
[348342904,1736457032064,-420.59,9.589e-05,2]
[348342905,1736457032074,-629.10260946,9.649e-05,2]
[348342906,1736457032085,-150.0,9.693e-05,2]
[348342907,1736457032097,-150.0,9.7e-05,2]
[348342908,1736457032106,-1000.0,9.7e-05,2]
[348342909,1736457032115,-1000.0,9.719e-05,2]
[348342910,1736457032125,-8991.3847,9.749e-05,2]
[348342911,1736457032134,-1000.0,9.749e-05,2]
[348342912,1736457032145,-150.0,9.762e-05,2]
[348342913,1736457032154,-150.0,9.766e-05,2]
[348342914,1736457032163,-500.0,9.823e-05,2]
[348342915,1736457032172,-500.0,9.823e-05,2]
[348342916,1736457032181,-500.0,9.823e-05,2]
[348342917,1736457032190,-501.13577004,9.823e-05,2]
[348342918,1736457032199,-150.0,9.832e-05,2]
[348342919,1736457032208,-150.0,9.838e-05,2]
[348342920,1736457032217,-150.0,9.838e-05,2]
[348342921,1736457032226,-150.0,9.838e-05,2]
[348342923,1736457032235,-1019.49,9.846e-05,2]
[348342925,1736457032245,-876.79,9.846e-05,2]
[348342927,1736457032254,-500.0,9.846e-05,2]
[348342928,1736457032264,-500.0,9.846e-05,2]
[348342929,1736457032273,-502.37981285,9.847e-05,2]
[348342930,1736457032283,-500.0,9.847e-05,2]
[348342931,1736457032292,-500.0,9.847e-05,2]
[348342932,1736457032303,-500.0,9.847e-05,2]
[348342933,1736457032312,-500.0,9.847e-05,2]
[348342934,1736457032323,-500.0,9.847e-05,2]
[348342935,1736457032332,-501.38540802,9.847e-05,2]
[348342937,1736457032343,-500.0,9.847e-05,2]
[348342939,1736457032353,-501.72286133,9.847e-05,2]
[348342941,1736457032363,-500.0,9.847e-05,2]
[348342943,1736457032372,-754.29,9.847e-05,2]
[348342945,1736457032383,-500.0,9.847e-05,2]
[348342946,1736457032392,-503.29134855,9.847e-05,2]
[348342948,1736457032402,-500.0,9.847e-05,2]
[348342950,1736457032411,-503.55491764,9.847e-05,2]
[348342952,1736457032421,-500.0,9.847e-05,2]
[348342954,1736457032430,-500.0,9.847e-05,2]
[348342956,1736457032439,-500.0,9.847e-05,2]
[348342958,1736457032448,-500.0,9.847e-05,2]
[348342960,1736457032457,-500.0,9.847e-05,2]
[348342963,1736457032467,-500.0,9.847e-05,2]
[348342966,1736457032476,-500.0,9.847e-05,2]
[348342969,1736457032486,-500.0,9.847e-05,2]
[348342971,1736457032495,-948.91,9.847e-05,2]
[348342975,1736457032504,-500.0,9.847e-05,2]
[348342978,1736457032513,-500.0,9.847e-05,2]
[348342980,1736457032522,-500.0,9.847e-05,2]
[348342983,1736457032531,-500.0,9.847e-05,2]
[348342986,1736457032540,-673.96,9.847e-05,2]
[348342988,1736457032550,-500.0,9.847e-05,2]
[348342989,1736457032559,-500.0,9.847e-05,2]
[348342991,1736457032568,-506.36823557,9.847e-05,2]
[348342994,1736457032577,-500.0,9.847e-05,2]
[348342996,1736457032587,-504.70116171,9.847e-05,2]
[348342998,1736457032599,-749.64,9.847e-05,2]
[348343000,1736457032609,-500.0,9.847e-05,2]
[348343002,1736457032618,-500.0,9.847e-05,2]
[348343004,1736457032628,-500.0,9.847e-05,2]
[348343005,1736457032637,-502.89751708,9.847e-05,2]
[348343006,1736457032646,-507.1,9.847e-05,2]
[348343007,1736457032655,-500.0,9.847e-05,2]
[348343008,1736457032664,-500.0,9.847e-05,2]
[348343009,1736457032674,-500.0,9.847e-05,2]
[348343010,1736457032682,-500.0,9.847e-05,2]
[348343011,1736457032692,-500.0,9.847e-05,2]
[348343012,1736457032701,-500.0,9.847e-05,2]
[348343013,1736457032711,-500.0,9.847e-05,2]
[348343014,1736457032720,-500.0,9.847e-05,2]
[348343015,1736457032730,-500.0,9.847e-05,2]
[348343016,1736457032739,-500.0,9.847e-05,2]
[348343017,1736457032748,-500.0,9.847e-05,2]
[348343018,1736457032757,-500.0,9.847e-05,2]
[348343019,1736457032767,-349.3100346,9.847e-05,2]
[348343020,1736457032776,-500.0,9.847e-05,2]
[348343021,1736457032785,-500.0,9.847e-05,2]